bitfinex-derivatives/quotes_BTCF0:USTF0_20210104
["timestamp","ask_amount","ask_price","bid_price","bid_amount"]
[1609781621499,0.56710629,30963.0,30957.0,0.0968]
[1609781622099,0.8456028,30966.0,30952.0,0.14034]
[1609781622299,0.0952,31028.0,30952.0,0.14034]
[1609781622300,0.13632608,30982.0,30965.0,0.13632608]
[1609781624202,0.11083,30983.0,30980.0,0.13632608]
[1609781626106,0.7701,30982.0,30980.0,0.13632608]
[1609781626305,0.13632608,30981.0,30980.0,0.13632608]
[1609781626705,0.7701,30982.0,30980.0,0.13632608]
[1609781628207,0.7701,30982.0,30960.0,0.1134]
[1609781628408,0.13632608,30981.0,30960.0,0.1134]
[1609781629006,4.3022,30960.0,30952.0,0.14034]
[1609781629206,0.13632608,30981.0,30952.0,0.14034]
[1609781629406,5.1177,30954.0,30952.0,0.11335]
[1609781630411,5.1177,30954.0,30942.0,0.10365]
[1609781630609,5.1177,30954.0,30931.0,0.1771]
[1609781630809,0.13632608,30958.0,30931.0,0.1771]
[1609781631010,4.9114,30945.0,30931.0,0.1771]
[1609781631209,4.9114,30945.0,30930.0,0.15475]
[1609781631408,4.9114,30945.0,30926.0,2.12559873]
[1609781631609,4.9114,30945.0,30922.0,2.12589419]
[1609781632309,0.13632608,30939.0,30937.0,0.13632608]
[1609781632908,0.5369,30938.0,30937.0,0.13632608]
[1609781635011,0.5369,30938.0,30917.0,0.1771]
[1609781635210,0.5369,30938.0,30917.0,0.2747]
[1609781635710,0.5369,30938.0,30917.0,0.9717]
[1609781635911,0.11682,30947.0,30917.0,0.2747]
[1609781636113,0.09562,30947.0,30923.0,3.6733]
[1609781636311,0.04941,30954.0,30946.0,0.13632608]
[1609781636511,0.05324,30963.0,30946.0,0.13632608]
[1609781636715,0.13632608,30966.0,30946.0,0.25510608]
[1609781637612,4.9767,30977.0,30946.0,0.25510608]
[1609781638413,4.9767,30977.0,30946.0,0.11878]
[1609781640316,0.13632608,30974.0,30967.0,0.13632608]
[1609781641418,0.14692,30984.0,30967.0,0.13632608]
[1609781641617,0.14692,30984.0,30967.0,0.24386608]
[1609781642420,0.14692,30984.0,30983.0,0.13632608]
[1609781643420,0.14692,30984.0,30970.0,4.2519]
[1609781644425,0.14692,30984.0,30979.0,0.13632608]
[1609781645624,0.14692,30984.0,30970.0,4.2519]
[1609781646324,0.14692,30984.0,30983.0,0.13632608]
[1609781646524,0.13632608,30985.0,30983.0,0.13632608]
[1609781646928,0.7134,30984.0,30983.0,0.13632608]
[1609781647125,0.87122,30984.0,30970.0,4.2519]
[1609781647325,0.15782,30984.0,30967.0,0.10754]
[1609781647525,4.9968,30977.0,30950.0,4.3897]
[1609781647927,5.1528,30977.0,30950.0,4.3897]
[1609781648127,0.156,30977.0,30942.0,0.273]
[1609781648326,0.156,30977.0,30975.0,0.13632608]
[1609781650430,0.29232608,30977.0,30975.0,0.13632608]
[1609781650629,0.156,30977.0,30975.0,0.13632608]
[1609781651029,0.15782,30984.0,30975.0,0.13632608]
[1609781652130,0.69795989,30987.0,30975.0,0.13632608]
[1609781652533,0.69795989,30987.0,30986.0,0.13632608]
[1609781652933,3.6742,30988.0,30986.0,0.13632608]
[1609781654835,3.6742,30988.0,30986.0,0.09992608]
[1609781656033,0.00989365,30995.0,30986.0,0.09992608]
[1609781656433,0.00989365,30995.0,30983.0,4.843]
[1609781656434,0.00989365,30995.0,30994.0,0.13632608]
[1609781656636,0.58215512,30995.0,30994.0,0.13632608]
[1609781657036,0.50145512,30995.0,30994.0,0.13632608]
[1609781657841,0.22855512,30995.0,30994.0,0.13632608]
[1609781658441,1.10284288,31004.0,30994.0,0.13632608]
[1609781658442,0.13632608,31005.0,30994.0,0.13632608]
[1609781659341,0.00989349,31007.0,30994.0,0.13632608]
[1609781659543,0.00988698,31011.0,30994.0,0.13632608]
[1609781660444,0.00988698,31011.0,31010.0,0.13632608]
[1609781661344,0.00988736,31013.0,31010.0,0.13632608]
[1609781661743,0.69812523,31016.0,31010.0,0.13632608]
[1609781662345,0.00988182,31015.0,31010.0,0.13632608]
[1609781662544,0.2976679,31015.0,30996.0,3.7502]
[1609781664347,0.2976679,31015.0,30992.0,0.11494]
[1609781664549,5.1607,31006.0,30982.0,0.12684]
[1609781664749,5.1607,31006.0,30980.0,4.1559]
[1609781666453,0.13632608,31004.0,31000.0,0.13632608]
[1609781666651,0.13632608,31004.0,30980.0,4.1559]
[1609781668452,0.13632608,31004.0,31003.0,0.13632608]
[1609781670052,5.1607,31006.0,31003.0,0.13632608]
[1609781670454,0.13632608,31004.0,30992.0,0.28247608]
[1609781670653,0.13632608,31004.0,30992.0,0.14615]
[1609781670856,4.7474,30994.0,30992.0,0.14615]
[1609781671054,4.7474,30994.0,30985.0,0.1356]
[1609781672455,4.7474,30994.0,30993.0,0.13632608]
[1609781672655,4.7474,30994.0,30972.0,4.5433]
[1609781674356,0.10743,30998.0,30969.0,0.3945]
[1609781674557,0.10743,30998.0,30991.0,0.13632608]
[1609781674758,4.587,30992.0,30969.0,0.3945]
[1609781675256,4.587,30992.0,30969.0,0.2979]
[1609781676160,0.10743,30998.0,30958.0,0.1771]
[1609781676359,0.0098791,30999.0,30960.0,0.12423]
[1609781676565,0.0098791,30999.0,30967.0,0.13632608]
[1609781676759,4.76305,30972.0,30960.0,0.12423]
[1609781676959,0.14995,30972.0,30960.0,0.12423]
[1609781677161,4.4688,30961.0,30960.0,0.12423]
[1609781677361,4.4688,30961.0,30945.0,2.29689053]
[1609781678163,4.4688,30961.0,30945.0,0.1771]
[1609781678561,0.14995,30972.0,30960.0,0.13632608]
[1609781678766,0.14995,30972.0,30960.0,0.29582608]
[1609781679163,3.8925,30974.0,30960.0,0.29582608]
[1609781680465,3.8925,30974.0,30973.0,0.13632608]
[1609781683265,3.8925,30974.0,30960.0,0.1595]
[1609781683866,3.8925,30974.0,30951.0,0.0958]
[1609781684065,0.14891,30976.0,30951.0,0.0958]
[1609781684265,3.9835,30965.0,30951.0,0.20754]
[1609781684467,3.9835,30965.0,30964.0,0.13632608]
[1609781686572,4.11982608,30965.0,30964.0,0.13632608]
[1609781689371,3.9835,30965.0,30964.0,0.13632608]
[1609781689573,0.14891,30976.0,30964.0,0.13632608]
[1609781689772,5.331,30971.0,30964.0,0.13632608]
[1609781689973,5.47453,30971.0,30964.0,0.13632608]
[1609781690573,5.47453,30971.0,30970.0,0.13632608]
[1609781693676,5.47453,30971.0,30958.0,0.15081]
[1609781693875,0.14353,30971.0,30958.0,0.15081]
[1609781694076,5.0553,30959.0,30958.0,0.15081]
[1609781694277,5.0553,30959.0,30958.0,0.24701]
[1609781694479,5.0553,30959.0,30958.0,0.15081]
[1609781694677,5.0553,30959.0,30958.0,0.28713608]
[1609781696878,5.0553,30959.0,30958.0,0.15081]
[1609781697080,5.0553,30959.0,30951.0,0.11174]
[1609781697279,5.1022,30952.0,30948.0,0.2756]
[1609781697680,5.1022,30952.0,30943.0,2.14065354]
[1609781698080,5.1022,30952.0,30940.0,2.14433512]
[1609781698281,0.09985,30954.0,30940.0,2.14433512]
[1609781698480,3.9436,30942.0,30940.0,2.14433512]
[1609781698680,0.13632608,30941.0,30940.0,2.14433512]
[1609781699084,4.3554,30939.0,30933.0,0.13632608]
[1609781700584,4.3554,30939.0,30938.0,0.13632608]
[1609781703885,4.3554,30939.0,30931.0,0.10724]
[1609781704285,0.13632608,30941.0,30931.0,0.10724]
[1609781704485,0.15074,30962.0,30934.0,3.7494]
[1609781704685,0.15074,30962.0,30961.0,0.13632608]
[1609781704885,0.47452526,30965.0,30961.0,0.13632608]
[1609781705087,0.42204637,30966.0,30961.0,0.13632608]
[1609781705285,0.18304637,30966.0,30961.0,0.13632608]
[1609781705485,0.13444637,30966.0,30961.0,0.13632608]
[1609781705687,0.08759672,30969.0,30961.0,0.29549608]
[1609781705886,0.00689672,30969.0,30961.0,0.29549608]
[1609781706193,0.94528753,30976.0,30961.0,0.29549608]
[1609781706595,0.94528753,30976.0,30975.0,0.13632608]
[1609781707201,0.83788753,30976.0,30975.0,0.13632608]
[1609781707403,0.52558753,30976.0,30975.0,0.13632608]
[1609781707607,0.24708753,30976.0,30969.0,0.0969]
[1609781707791,0.08158753,30976.0,30969.0,0.0969]
[1609781708404,0.02438753,30976.0,30969.0,0.0969]
[1609781708600,0.02438753,30976.0,30975.0,0.13632608]
[1609781708803,0.00818753,30976.0,30975.0,0.13632608]
[1609781709494,0.12431,30989.0,30975.0,0.13632608]
[1609781710800,0.13632608,30976.0,30975.0,0.13632608]
[1609781710993,4.80432608,30976.0,30975.0,0.13632608]
[1609781711395,0.13339,30982.0,30975.0,0.13632608]
[1609781712797,4.6611,30978.0,30969.0,0.0969]
[1609781712998,4.6611,30978.0,30961.0,0.15917]
[1609781713196,0.13339,30982.0,30954.0,0.10549]
[1609781713396,3.895,30964.0,30950.0,2.13083433]
[1609781713999,3.895,30964.0,30952.0,2.13185334]
[1609781714399,0.14946,30965.0,30952.0,2.13185334]
[1609781714800,5.2677,30956.0,30943.0,0.15607]
[1609781714999,0.12097,30958.0,30943.0,0.15607]
[1609781715203,0.12097,30958.0,30940.0,0.12352]
[1609781716401,0.6545,30957.0,30940.0,0.12352]
[1609781716702,0.13632608,30947.0,30946.0,0.13632608]
[1609781718005,0.11034,30951.0,30946.0,0.13632608]
[1609781718704,0.11034,30951.0,30940.0,0.12352]
[1609781718705,0.11034,30951.0,30950.0,0.13632608]
[1609781718905,0.25729608,30958.0,30950.0,0.13632608]
[1609781719305,0.12097,30958.0,30950.0,0.13632608]
[1609781720106,4.478,30964.0,30950.0,0.13632608]
[1609781720809,4.61432608,30964.0,30963.0,0.13632608]
[1609781721008,0.13632608,30964.0,30963.0,0.13632608]
[1609781721909,0.14946,30965.0,30963.0,0.13632608]
[1609781722109,3.6837,30971.0,30963.0,0.13632608]
[1609781722710,0.13632608,30965.0,30963.0,0.13632608]
[1609781722911,0.6192,30964.0,30940.0,0.12352]
[1609781723112,0.23487608,30965.0,30934.0,0.1771]
[1609781723313,4.1597,30957.0,30934.0,0.2757]
[1609781723711,4.30002,30957.0,30934.0,0.2757]
[1609781725211,0.14032,30957.0,30934.0,0.2757]
[1609781725412,0.10923,30947.0,30934.0,0.2757]
[1609781726014,0.10923,30947.0,30925.0,2.1388804]
[1609781726613,0.10923,30947.0,30922.0,2.75867905]
[1609781726813,0.10923,30947.0,30946.0,0.13632608]
[1609781727413,4.34933,30947.0,30946.0,0.13632608]
[1609781727612,4.34933,30947.0,30934.0,0.1771]
[1609781728814,4.34933,30947.0,30943.0,0.13632608]
[1609781729015,4.34933,30947.0,30934.0,0.1771]
[1609781729416,4.34933,30947.0,30933.0,0.13553]
[1609781730717,4.34933,30947.0,30942.0,0.13632608]
[1609781732115,4.34933,30947.0,30933.0,0.13553]
[1609781732316,4.34933,30947.0,30925.0,4.3295]
[1609781732517,0.10923,30947.0,30923.0,2.13809587]
[1609781732718,4.6006,30937.0,30936.0,0.13632608]
[1609781733118,4.6006,30937.0,30923.0,2.13809587]
[1609781733719,4.6006,30937.0,30926.0,2.14450954]
[1609781734719,4.6006,30937.0,30936.0,0.13632608]
[1609781734922,0.27428608,30939.0,30936.0,0.13632608]
[1609781735220,0.27428608,30939.0,30919.0,0.10148]
[1609781735819,4.8616,30927.0,30919.0,0.10148]
[1609781736221,0.27428608,30939.0,30919.0,0.10148]
[1609781736724,0.27428608,30939.0,30934.0,0.13632608]
[1609781736725,0.13796,30939.0,30934.0,0.13632608]
[1609781737023,0.13796,30939.0,30919.0,0.10148]
[1609781737722,5.0866,30921.0,30919.0,0.10148]
[1609781737923,5.0866,30921.0,30914.0,2.14472992]
[1609781738123,0.11671,30932.0,30914.0,2.14472992]
[1609781738522,4.5474,30917.0,30914.0,2.14472992]
[1609781738727,4.5474,30917.0,30916.0,0.13632608]
[1609781739524,4.5474,30917.0,30912.0,2.14543106]
[1609781740029,4.5474,30917.0,30911.0,0.15651]
[1609781740826,4.5474,30917.0,30913.0,0.13632608]
[1609781741027,0.15474,30924.0,30913.0,0.13632608]
[1609781741930,0.15474,30924.0,30911.0,0.15651]
[1609781742830,0.15474,30924.0,30923.0,0.13632608]
[1609781743640,0.11671,30932.0,30923.0,0.13632608]
[1609781743831,0.13796,30939.0,30923.0,0.13632608]
[1609781744037,0.0184774,30945.0,30923.0,0.13632608]
[1609781744230,0.0184774,30945.0,30923.0,4.45032608]
[1609781744432,0.0184774,30945.0,30923.0,4.314]
[1609781744834,0.01847823,30950.0,30923.0,4.314]
[1609781745042,0.01847823,30950.0,30949.0,0.13632608]
[1609781746332,4.11300704,30972.0,30949.0,0.13632608]
[1609781746930,4.11300704,30972.0,30962.0,0.13632608]
[1609781747832,4.11300704,30972.0,30944.0,0.11762]
[1609781748233,4.24119704,30972.0,30944.0,0.11762]
[1609781748434,0.14679704,30972.0,30944.0,0.11762]
[1609781748634,0.14679704,30972.0,30921.0,0.1464]
[1609781748836,5.1729,30963.0,30921.0,0.1464]
[1609781749037,5.1729,30963.0,30952.0,0.13632608]
[1609781749238,5.33143,30963.0,30952.0,0.13632608]
[1609781749840,0.15853,30963.0,30952.0,0.13632608]
[1609781750039,4.43543,30963.0,30952.0,0.13632608]
[1609781750940,4.43543,30963.0,30934.0,4.8999]
[1609781751340,4.43543,30963.0,30941.0,0.13632608]
[1609781751540,4.43543,30963.0,30934.0,4.8999]
[1609781752445,4.43543,30963.0,30934.0,4.8666]
[1609781753144,0.01869929,30959.0,30934.0,4.8666]
[1609781753346,0.01869929,30959.0,30943.0,0.13632608]
[1609781754544,0.01869929,30959.0,30934.0,4.8666]
[1609781755347,0.13632608,30942.0,30940.0,0.13632608]
[1609781755748,0.15552,30946.0,30940.0,0.13632608]
[1609781757352,0.29184608,30946.0,30945.0,0.13632608]
[1609781757952,0.29184608,30946.0,30933.0,5.4042]
[1609781758155,0.29184608,30946.0,30931.0,0.13346]
[1609781758353,0.29184608,30946.0,30922.0,4.4899]
[1609781758752,0.15552,30946.0,30922.0,4.4899]
[1609781759353,0.15552,30946.0,30945.0,0.13632608]
[1609781760656,0.13632608,30947.0,30945.0,0.13632608]
[1609781761056,0.13632608,30947.0,30929.0,0.10971]
[1609781761255,0.29632608,30947.0,30929.0,0.10971]
[1609781761457,0.16,30947.0,30944.0,0.13632608]
[1609781761658,0.16,30947.0,30929.0,0.10971]
[1609781762761,4.156,30941.0,30929.0,0.10971]
[1609781763260,0.16,30947.0,30929.0,0.10971]
[1609781763660,4.6492,30944.0,30921.0,0.1464]
[1609781763860,4.6492,30944.0,30913.0,3.7104]
[1609781765363,0.16,30947.0,30911.0,2.29840819]
[1609781765562,4.6613,30936.0,30911.0,0.15651]
[1609781765762,4.80286,30936.0,30900.0,2.14086841]
[1609781765962,4.80286,30936.0,30915.0,0.13632608]
[1609781767462,0.14156,30936.0,30915.0,0.13632608]
[1609781767966,0.14156,30936.0,30924.0,0.13632608]
[1609781768865,0.14156,30936.0,30908.0,4.89032]
[1609781769269,0.14156,30936.0,30908.0,0.14092]
[1609781769467,3.9637,30932.0,30908.0,0.14092]
[1609781770067,3.9637,30932.0,30917.0,0.13632608]
[1609781771066,3.9637,30932.0,30908.0,0.14092]
[1609781771367,3.9637,30932.0,30897.0,2.14248106]
[1609781771571,3.9637,30932.0,30896.0,4.8631]
[1609781771968,3.9637,30932.0,30921.0,0.13632608]
[1609781772668,3.9637,30932.0,30906.0,0.1437]
[1609781773667,3.9637,30932.0,30907.0,0.1771]
[1609781773869,3.9637,30932.0,30908.0,0.0979]
[1609781774469,3.9637,30932.0,30931.0,0.13632608]
[1609781774869,3.9637,30932.0,30908.0,0.0979]
[1609781775471,3.9637,30932.0,30910.0,0.669]
[1609781776472,3.9637,30932.0,30931.0,0.13632608]
[1609781776672,0.14156,30936.0,30931.0,0.13632608]
[1609781777672,0.01846773,30944.0,30922.0,4.6499]
[1609781777872,0.01846773,30944.0,30924.0,0.11298]
[1609781778479,0.13632608,30949.0,30943.0,0.13632608]
[1609781778875,0.13632608,30949.0,30924.0,0.11298]
[1609781779074,0.25424608,30949.0,30924.0,0.11298]
[1609781779484,5.00258,30940.0,30924.0,0.11298]
[1609781780278,5.00258,30940.0,30917.0,2.14365899]
[1609781780492,4.5105,30923.0,30917.0,2.14365899]
[1609781781291,4.5105,30923.0,30909.0,2.1444959]
[1609781782489,0.13632608,30910.0,30909.0,1.0803959]
[1609781782684,0.15826,30924.0,30909.0,1.0803959]
[1609781782884,3.652,30907.0,30895.0,0.49364737]
[1609781783480,0.12456,30910.0,30895.0,0.49364737]
[1609781784282,3.7116,30897.0,30895.0,0.49364737]
[1609781784482,0.13632608,30896.0,30883.0,0.13632608]
[1609781784885,0.13632608,30896.0,30877.0,2.34289038]
[1609781785680,0.10537,30897.0,30877.0,2.34289038]
[1609781785880,0.10537,30897.0,30877.0,2.45355038]
[1609781786384,0.13632608,30896.0,30895.0,0.13632608]
[1609781787284,0.10537,30897.0,30895.0,0.13632608]
[1609781788185,0.12456,30910.0,30895.0,0.13632608]
[1609781788384,0.12456,30910.0,30904.0,0.13632608]
[1609781788584,5.1169,30914.0,30885.0,0.10585]
[1609781790686,5.1169,30914.0,30899.0,0.13632608]
[1609781792688,0.13632608,30900.0,30899.0,0.13632608]
[1609781793488,0.13632608,30900.0,30885.0,0.10585]
[1609781793687,0.13632608,30900.0,30881.0,0.0972]
[1609781794090,0.13632608,30900.0,30878.0,0.1771]
[1609781794690,0.13632608,30879.0,30872.0,2.33613166]
[1609781794891,4.02872608,30879.0,30872.0,2.33613166]
[1609781795201,3.8924,30879.0,30874.0,2.14077872]
[1609781795892,0.1414,30882.0,30874.0,2.14077872]
[1609781796599,0.13632608,30878.0,30877.0,0.13632608]
[1609781796797,0.13632608,30878.0,30865.0,0.12331]
[1609781797000,0.1414,30882.0,30865.0,0.12331]
[1609781797603,3.7476,30884.0,30866.0,0.096]
[1609781797806,0.15237,30889.0,30866.0,0.096]
[1609781798608,0.15237,30889.0,30888.0,0.13632608]
[1609781798806,0.2786,30900.0,30888.0,0.13632608]
[1609781798807,0.7902894,30914.0,30888.0,0.13632608]
[1609781799208,0.7902894,30914.0,30888.0,0.24221608]
[1609781799402,3.661e-05,30909.0,30888.0,0.24221608]
[1609781799997,0.53522743,30910.0,30889.0,0.0971]
[1609781800198,0.52362743,30910.0,30889.0,0.0971]
[1609781800398,0.24092743,30910.0,30889.0,0.0971]
[1609781800598,0.30963306,30911.0,30889.0,0.0971]
[1609781800799,0.21823306,30911.0,30909.0,0.13632608]
[1609781801200,0.78931127,30918.0,30909.0,0.13632608]
[1609781802000,0.15691127,30918.0,30910.0,0.0958]
[1609781802199,0.65913144,30921.0,30910.0,0.0958]
[1609781802399,0.40713144,30921.0,30910.0,4.8644]
[1609781802600,0.26563144,30921.0,30910.0,4.7686]
[1609781802800,0.42342608,30942.0,30920.0,0.13632608]
[1609781804802,0.2871,30942.0,30932.0,0.13632608]
[1609781806202,0.2871,30942.0,30926.0,0.0982]
[1609781806402,0.42582,30942.0,30922.0,0.0976]
[1609781806703,0.13632608,30930.0,30929.0,0.13632608]
[1609781807104,0.10931,30932.0,30929.0,0.13632608]
[1609781807303,0.10931,30932.0,30929.0,0.23422608]
[1609781808005,0.10931,30932.0,30929.0,0.13632608]
[1609781808705,0.24563608,30932.0,30929.0,0.13632608]
[1609781809105,0.10931,30932.0,30929.0,0.13632608]
[1609781809304,0.42582,30942.0,30929.0,0.13632608]
[1609781810808,0.42582,30942.0,30941.0,0.13632608]
[1609781812211,0.13872,30942.0,30941.0,0.13632608]
[1609781812611,0.2992,30965.0,30941.0,0.13632608]
[1609781812811,0.13632608,30959.0,30941.0,0.13632608]
[1609781814714,4.2715,30965.0,30947.0,0.13632608]
[1609781815813,0.2992,30965.0,30947.0,0.13632608]
[1609781816014,0.3966,30965.0,30947.0,0.13632608]
[1609781816213,0.2992,30965.0,30947.0,0.13632608]
[1609781816613,5.231,30964.0,30947.0,0.13632608]
[1609781816813,0.13632608,30948.0,30947.0,0.13632608]
[1609781817013,5.38298,30964.0,30947.0,0.13632608]
[1609781817215,0.13733,30948.0,30947.0,0.13632608]
[1609781821716,0.13632608,30957.0,30947.0,0.13632608]
[1609781821916,0.14085,30948.0,30947.0,0.13632608]
[1609781823119,0.14085,30948.0,30927.0,0.2768]
[1609781823919,0.14085,30948.0,30928.0,0.0969]
[1609781824721,0.13632608,30934.0,30928.0,0.0969]
[1609781825123,0.13632608,30934.0,30926.0,0.29064608]
[1609781825321,4.61512,30939.0,30919.0,0.11042]
[1609781825524,4.61512,30939.0,30912.0,2.13540546]
[1609781826822,0.11522,30939.0,30936.0,0.13632608]
[1609781828825,0.13632608,30937.0,30936.0,0.13632608]
[1609781829627,0.13632608,30937.0,30928.0,0.0974]
[1609781829827,0.13632608,30937.0,30920.0,0.10667]
[1609781830728,0.11522,30939.0,30933.0,0.13632608]
[1609781830927,0.11522,30939.0,30926.0,0.0956]
[1609781831129,4.7245,30942.0,30926.0,0.0956]
[1609781831328,4.7245,30942.0,30910.0,5.0829]
[1609781832831,4.7245,30942.0,30917.0,0.13632608]
[1609781833731,0.2745,30947.0,30917.0,0.13632608]
[1609781833931,4.827,30930.0,30917.0,0.13632608]
[1609781834131,4.93578,30930.0,30901.0,0.11357]
[1609781834331,4.93578,30930.0,30895.0,6.55131276]
[1609781834332,4.5655,30919.0,30895.0,2.13501276]
[1609781834534,4.5655,30919.0,30893.0,2.13516971]
[1609781834932,4.704,30919.0,30893.0,2.13516971]
[1609781835335,4.704,30919.0,30901.0,0.13632608]
[1609781837136,4.704,30919.0,30892.0,0.09971]
[1609781837335,4.704,30919.0,30893.0,0.13632608]
[1609781838836,0.1385,30919.0,30883.0,2.13523248]
[1609781839037,0.1385,30919.0,30878.0,0.3004]
[1609781839038,4.1325,30904.0,30879.0,2.13610944]
[1609781839236,4.1325,30904.0,30882.0,0.13632608]
[1609781839435,4.28846,30904.0,30879.0,2.13610944]
[1609781840040,4.28846,30904.0,30873.0,2.42565059]
[1609781840441,4.28846,30904.0,30873.0,2.13605059]
[1609781840839,0.15596,30904.0,30873.0,2.13605059]
[1609781841038,4.3521,30892.0,30873.0,2.13605059]
[1609781841240,4.46062,30892.0,30878.0,0.13632608]
[1609781841941,4.46062,30892.0,30866.0,0.097]
[1609781842342,0.10852,30892.0,30863.0,2.28841813]
[1609781842543,3.8349,30872.0,30858.0,2.23292737]
[1609781842741,3.93466,30872.0,30858.0,2.13462737]
[1609781843243,3.93466,30872.0,30861.0,0.13632608]
[1609781843442,3.93466,30872.0,30862.0,0.0959]
[1609781844041,3.93466,30872.0,30861.0,0.13632608]
[1609781845245,0.13632608,30862.0,30861.0,0.13632608]
[1609781846346,0.14985,30863.0,30861.0,0.13632608]
[1609781846549,0.09976,30872.0,30861.0,0.13632608]
[1609781846757,0.2739,30891.0,30861.0,0.13632608]
[1609781846947,0.2739,30891.0,30861.0,0.28610608]
[1609781847349,0.2739,30891.0,30885.0,0.13632608]
[1609781848353,0.2739,30891.0,30868.0,0.11163]
[1609781848759,4.9686,30885.0,30868.0,0.11163]
[1609781848961,5.09684,30885.0,30861.0,0.14978]
[1609781849362,5.09684,30885.0,30877.0,0.13632608]
[1609781849755,5.09684,30885.0,30861.0,0.14978]
[1609781850957,5.09684,30885.0,30849.0,0.2785]
[1609781851258,5.09684,30885.0,30871.0,0.13632608]
[1609781851859,5.09684,30885.0,30849.0,0.2785]
[1609781853259,5.09684,30885.0,30867.0,0.13632608]
[1609781855264,0.13632608,30869.0,30867.0,0.13632608]
[1609781856466,0.15017,30872.0,30867.0,0.13632608]
[1609781857268,0.15017,30872.0,30871.0,0.13632608]
[1609781858069,0.15017,30872.0,30855.0,0.14826]
[1609781859071,0.15017,30872.0,30849.0,0.2785]
[1609781859471,0.28649608,30872.0,30871.0,0.13632608]
[1609781863373,0.14287,30872.0,30871.0,0.13632608]
[1609781863774,0.2739,30891.0,30871.0,0.13632608]
[1609781864374,0.2739,30891.0,30871.0,0.27027608]
[1609781864778,0.10852,30892.0,30871.0,0.27027608]
[1609781864975,4.1579,30896.0,30871.0,0.27027608]
[1609781865475,0.2782,30903.0,30892.0,0.13632608]
[1609781866277,0.2735,30914.0,30892.0,0.13632608]
[1609781867378,0.2735,30914.0,30913.0,0.13632608]
[1609781867577,0.2735,30914.0,30893.0,0.13472]
[1609781867776,0.41981,30914.0,30893.0,0.13472]
[1609781869376,0.41981,30914.0,30911.0,0.13632608]
[1609781869777,0.14631,30914.0,30911.0,0.13632608]
[1609781870378,0.14631,30914.0,30894.0,0.2945]
[1609781870582,5.367,30910.0,30894.0,0.2945]
[1609781870777,5.367,30910.0,30881.0,4.589]
[1609781871379,0.13632608,30889.0,30882.0,0.13632608]
[1609781871779,0.13632608,30889.0,30880.0,0.098]
[1609781872780,0.13632608,30889.0,30873.0,0.0971]
[1609781872981,0.13632608,30889.0,30865.0,4.096]
[1609781873389,0.15738,30892.0,30879.0,0.13632608]
[1609781873590,0.15738,30892.0,30865.0,4.096]
[1609781874181,0.15738,30892.0,30865.0,0.0961]
[1609781874395,4.8519,30887.0,30864.0,0.11386]
[1609781875085,4.8519,30887.0,30857.0,0.0981]
[1609781875483,0.13632608,30863.0,30862.0,0.13632608]
[1609781876085,5.44111,30874.0,30862.0,0.13632608]
[1609781877386,5.44111,30874.0,30866.0,0.13632608]
[1609781879392,0.13632608,30868.0,30866.0,0.13632608]
[1609781879992,0.13581,30874.0,30867.0,0.0977]
[1609781880393,0.15738,30892.0,30867.0,0.23027]
[1609781880593,0.2765,30896.0,30867.0,0.13257]
[1609781880994,0.9188,30896.0,30867.0,0.13257]
[1609781881796,0.9188,30896.0,30868.0,0.0967]
[1609781882195,0.2765,30896.0,30868.0,0.0967]
[1609781882498,3.631,30890.0,30867.0,0.13257]
[1609781882696,3.78554,30890.0,30852.0,4.2501]
[1609781883895,3.78554,30890.0,30878.0,0.13632608]
[1609781884096,0.15454,30890.0,30878.0,0.13632608]
[1609781885898,0.15454,30890.0,30869.0,0.15953]
[1609781886299,0.15454,30890.0,30885.0,0.13632608]
[1609781886500,0.15454,30890.0,30869.0,0.15953]
[1609781887704,0.2765,30896.0,30869.0,0.15953]
[1609781888304,5.1653,30903.0,30869.0,0.15953]
[1609781889004,5.1653,30903.0,30898.0,0.13632608]
[1609781889204,0.13632608,30905.0,30898.0,0.13632608]
[1609781891008,0.13632608,30905.0,30904.0,0.13632608]
[1609781892711,0.13632608,30905.0,30890.0,0.12384]
[1609781893110,0.13975,30906.0,30900.0,0.13632608]
[1609781893311,0.13975,30906.0,30901.0,0.0969]
[1609781894813,0.13975,30906.0,30900.0,0.13632608]
[1609781895014,0.13632608,30901.0,30890.0,0.12384]
[1609781895217,3.9158,30900.0,30890.0,0.12384]
[1609781895416,3.9158,30900.0,30870.0,4.9664]
[1609781895617,3.9158,30900.0,30871.0,0.2915]
[1609781897119,3.9158,30900.0,30880.0,0.13632608]
[1609781898421,4.57128765,30900.0,30880.0,0.13632608]
[1609781898621,4.57128765,30900.0,30871.0,0.2915]
[1609781899020,4.57128765,30900.0,30882.0,0.13632608]
[1609781899520,4.57128765,30900.0,30882.0,0.23352608]
[1609781900422,4.57128765,30900.0,30882.0,0.0972]
[1609781901022,4.57128765,30900.0,30884.0,0.13632608]
[1609781903021,0.13632608,30885.0,30884.0,0.13632608]
[1609781905626,0.13632608,30885.0,30884.0,0.23332608]
[1609781907229,0.13632608,30885.0,30884.0,0.13632608]
[1609781907931,0.13632608,30885.0,30871.0,0.2915]
[1609781909032,0.13632608,30885.0,30883.0,0.13632608]
[1609781910634,0.13632608,30885.0,30884.0,0.0964]
[1609781911235,0.13632608,30885.0,30883.0,0.13632608]
[1609781912236,0.13632608,30885.0,30884.0,0.097]
[1609781913937,0.13632608,30885.0,30883.0,0.13632608]
[1609781914940,0.13632608,30885.0,30884.0,0.0962]
[1609781915639,0.13632608,30885.0,30883.0,0.13632608]
[1609781917343,0.13632608,30885.0,30884.0,0.0971]
[1609781919547,0.13632608,30885.0,30883.0,0.13632608]
[1609781920350,0.13632608,30885.0,30871.0,0.2915]
[1609781921150,0.15123,30889.0,30881.0,0.13632608]
[1609781921551,3.9158,30900.0,30881.0,0.13632608]
[1609781922253,3.9158,30900.0,30871.0,0.2915]
[1609781923156,3.9158,30900.0,30888.0,0.13632608]
[1609781923556,3.9158,30900.0,30889.0,0.0957]
[1609781924957,3.9158,30900.0,30888.0,0.13632608]
[1609781925157,0.13632608,30889.0,30888.0,0.13632608]
[1609781925356,0.13632608,30889.0,30876.0,0.15944]
[1609781925756,5.209,30886.0,30876.0,0.15944]
[1609781926557,0.10158,30891.0,30877.0,0.0978]